Cogmind - Beta 16 @@@ ROGUE MODE // 2025.11.28 @ 17:02:22 Player: JuustuToug Result: Destroyed by G-34 Mercenary with Small Laser Performance ------------- Evolutions (0) 0 Regions Visited (1) 200 Robots Destroyed (12) 60 Value Destroyed (198) 198 Prototype IDs (3) 60 Alien Tech Used (0) 0 Bonus (0) 0 TOTAL SCORE: 518 Bonus ------- None Cogmind --------- Core Integrity 0/250 Matter 275/300 Energy 100/100 System Corruption 0% Temperature Cool (6) Movement Core (50) Location -10/Materials Parts ------- > --- POWER (1) -------- (None) > --- PROPULSION (2) --- (None) > --- UTILITY (2) ------ (None) > --- WEAPON (2) ------- (None) > --- INVENTORY (5) ---- Light Ion Engine Light Treads Compact Wheel Small Storage Unit Hammer Peak State ------------ > --- POWER ------------ Ion Engine > --- PROPULSION ------- Light Treads Light Treads > --- UTILITY ---------- Small Storage Unit Large Storage Unit > --- WEAPON ----------- EM Pulse Gun Small Laser > --- INVENTORY -------- Light Ion Engine Light Treads Compact Wheel ECM Suite EM Pulse Gun Light Assault Rifle Light Assault Rifle Hammer [Rating: 7] Favorites ----------- Power Ion Engine Engine Ion Engine Propulsion Light Treads Treads Light Treads Utility Small Storage Unit Device Heat Sink Storage Small Storage Unit Weapon Small Laser Energy Gun Small Laser Ballistic Gun Light Assault Rifle Build | -11 -10 ------- Run | Yrd Mat Slots Evolved . | . . Power . | . . Propulsion . | . . Utility . | . . Weapon . | . . Parts Attached 11 | 5 6 Power 2 | 2 . Engine 2 | 2 . Core . | . . Reactor . | . . Propulsion 2 | 2 . Treads 2 | 2 . Leg . | . . Wheel . | . . Hover . | . . Flight . | . . Utility 3 | 1 2 Device 1 | . 1 Storage 2 | 1 1 Processor . | . . Hackware . | . . Protection . | . . Artifact . | . . Weapon 4 | . 4 Energy Gun 2 | . 2 Energy Cannon . | . . Ballistic Gun 2 | . 2 Ballistic Cannon . | . . Launcher . | . . Special Weapon . | . . Impact Weapon . | . . Slashing Weapon . | . . Piercing Weapon . | . . Special Melee Weapon . | . . Unidentified Prototypes . | . . Parts Lost 2 | . 2 Power 1 | . 1 Propulsion . | . . Utility . | . . Weapon 1 | . 1 Highest Loss Streak 1 | . 1 To Critical Strikes . | . . Average Backups 6 | 2 6 Power 1 | . 1 Propulsion 1 | . 1 Utility . | . . Weapon 2 | 2 2 Tool/Special . | . . Unused Backups 9 | . 9 Power 1 | . 1 Propulsion 2 | . 2 Utility 1 | . 1 Weapon 5 | . 5 Tool/Special . | . . Average Slot Usage (%) 83 | . 83 Engine 14 | . 14 Treads 28 | . 28 Device 2 | . 2 Storage 14 | . 14 Energy Gun 21 | . 21 Ballistic Gun 1 | . 1 Peak Build Rating 7 | 4 7 Average Rating 5 | 2 5 On Entrance 2 | . 4 Avg Prop Armor Cover (%) . | . . Naked Turns 3 | . 3 Heaviest Build 29 | 10 29 Greatest Support 40 | 40 40 Greatest Overweight (x) . | . . Average Overweight (x) . | . . Largest Inventory Capacity 15 | 8 15 Average Capacity 9 | 6 10 Most Carried 10 | 5 10 Average Carried 6 | 2 6 Final Capacity 8 | 8 5 Final Carried 5 | 5 5 Class Distribution -------------------- 100% | Mutant Dominant Class ---------------- Mutant | -10/Materials Resources | -11 -10 ----------- Run | Yrd Mat Matter Collected 309 | 248 61 Remotely . | . . Salvage Created 266 | . 266 Parts 25 | . 25 Haulers Intercepted . | . . Recyclers Shooed . | . . Parts Field Recycled . | . . Retrieved Matter . | . . Parts Self-Destructed . | . . Prevented . | . . Parts Restored . | . . Kills | -11 -10 ------- Run | Yrd Mat Combat Hostiles Destroyed 11 | . 11 Guns 11 | . 11 Classes Destroyed 3 | . 3 Watcher 1 | . 1 Swarmer 8 | . 8 Grunt 3 | . 3 Best Kill Streak 5 | . 5 Combat Bots Only 5 | . 5 Max Kills in Single Turn 2 | . 2 Gunslinging . | . . Exploded . | . . Melee . | . . Uniques/NPCs Destroyed . | . . Combat | -11 -10 -------- Run | Yrd Mat Hostile Shots Fired 107 | . 107 Missed 28 | . 28 Hits 79 | . 79 Projectile 79 | . 79 Critical Strikes 1 | . 1 Damage Taken 772 | . 772 Core 250 | . 250 Absorbed by Shields . | . . Core Remaining (%) 100 | 100 . Volleys Fired 37 | . 37 Largest 2 | . 2 Hottest 80 | . 80 Shots Fired 72 | . 72 Gun 72 | . 72 Cannon . | . . Launcher . | . . Special . | . . Kinetic 32 | . 32 Thermal 22 | . 22 Explosive . | . . Electromagnetic 18 | . 18 Robot Hit Streak 11 | . 11 Robot Miss Streak 4 | . 4 Penetration Max . | . . Secondary Targets 5 | . 5 Max Gunslinging Chain 1 | . 1 Shots Hit Robots 42 | . 42 Core Hits 17 | . 17 Critical Kills . | . . Critical Parts Destroyed . | . . Critical Strikes 2 | . 2 Corrupt 2 | . 2 Melee Attacks . | . . Impact . | . . Slashing . | . . Piercing . | . . Sneak Attacks . | . . Combat Hostiles . | . . Follow-up Attacks . | . . Damage Inflicted 488 | . 488 Guns 485 | . 485 Cannons . | . . Explosions . | . . Melee . | . . Ramming 3 | . 3 Kinetic 136 | . 136 Thermal 168 | . 168 Explosive . | . . Electromagnetic 181 | . 181 Impact . | . . Slashing . | . . Piercing . | . . Highest Corruption . | . . Average Corruption . | . . Corruption Purged . | . . Corruption Blocked . | . . Overload Shots . | . . Overflow Damage . | . . Projectiles . | . . Explosions . | . . Melee . | . . Knockbacks . | . . Impact . | . . Kinetic . | . . Secondary . | . . Self-Inflicted Damage 1 | . 1 Shots . | . . Rammed 1 | . 1 Targets Rammed 1 | . 1 Kicked . | . . Crushed . | . . Highest Temperature 222 | . 222 Average Temperature 87 | . 87 Received Heat Transfer 237 | . 237 Siege Activations . | . . Martial Activations . | . . Shielding Activations . | . . Robots Disrupted 1 | . 1 Combat Hostiles 1 | . 1 Robots Corrupted . | . . Combat Hostiles . | . . Parts Fried . | . . Impact Corruptions . | . . Robots Melted . | . . Combat Hostiles . | . . Parts Melted 1 | . 1 Heat Transferred 375 | . 375 Parts Sabotaged . | . . Parts Stolen . | . . Parts Stripped . | . . Power Chain Reactions . | . . Alert | -11 -10 ------- Run | Yrd Mat Maximum Alert Level 1 | . 1 Low Security (%) 98 | 100 98 Level 1 1 | . 1 Level 2 . | . . Level 3 . | . . Level 4 . | . . Level 5 . | . . High Security . | . . Max Security . | . . Peak Influence 209 | . 209 Initial . | . . Average 19 | . 23 Influence Increases 402 | . 402 Destroy 0b10 Robot/C 220 | . 220 Destroy 0b10 Robot/NC 5 | . 5 Destroy Leader 52 | . 52 Successful Hack 20 | . 20 Lose Combat Pursuer 105 | . 105 Influence Decreases 211 | . 211 Time Decay 191 | . 191 Lost Part 20 | . 20 Squads Dispatched 2 | . 2 Investigation 1 | . 1 Extermination . | . . Reinforcement 1 | . 1 Assault . | . . Garrison . | . . Intercept . | . . Searches Triggered . | . . Construction Impeded . | . . Haulers Reinforced . | . . Active Scanning Responses . | . . Cargo Convoy Interrupts . | . . Stealth | -11 -10 --------- Run | Yrd Mat Distress Signals 2 | . 2 Communications Jammed . | . . Distress Signals . | . . Times Spotted 26 | . 26 Peak Tracking Total 10 | . 10 Tactical Retreats 2 | . 2 Traps | -11 -10 ------- Run | Yrd Mat Traps Triggered 1 | . 1 Indirectly . | . . Trap Hack Attempts . | . . Triggered . | . . Disarmed . | . . Reprogrammed . | . . Reused . | . . Traps Extracted . | . . Installed . | . . Triggered . | . . Machines | -11 -10 ---------- Run | Yrd Mat Machines Disabled . | . . Max in Single Turn . | . . Machines Repaired . | . . Machines Dismantled . | . . Machines Sabotaged . | . . Overloaded Fab Kills . | . . Hacking | -11 -10 --------- Run | Yrd Mat Machines Accessed 4 | . 4 Terminals 4 | . 4 Fabricators . | . . Repair Stations . | . . Recycling Units . | . . Scanalyzers . | . . Garrison Access . | . . Total Hacks 17 | . 17 Successful 11 | . 11 Failed 6 | . 6 Catastrophic 1 | . 1 Database Lockouts . | . . Manual 15 | . 15 Terminals 17 | . 17 Fabricators . | . . Repair Stations . | . . Recycling Units . | . . Scanalyzers . | . . Garrison Access . | . . Terminal Hacks 3 | . 3 Prototype ID Bank 2 | . 2 Branch Access Points 1 | . 1 Fabricator Hacks . | . . Repair Station Hacks . | . . Recycling Unit Hacks . | . . Scanalyzer . | . . Garrison Access Hacks . | . . Unauthorized Hacks 8 | . 8 Terminals 8 | . 8 Botnet 4 | . 4 Skim 4 | . 4 Fabricators . | . . Repair Stations . | . . Recycling Units . | . . Scanalyzers . | . . Garrison Access . | . . Data Cores Recovered . | . . Used . | . . Hacking Detections 4 | . 4 Full Trace Events . | . . Feedback Events . | . . Feedback Blocked . | . . Robot Schematics Acquired . | . . Robots Built . | . . Authchips . | . . Time . | . . Total Robot Build Rating . | . . Part Schematics Acquired . | . . Parts Built . | . . Authchips . | . . Time . | . . Total Part Build Rating . | . . Part Studies Acquired . | . . Parts Repaired . | . . Time . | . . Parts Recycled . | . . Recycled Matter . | . . Retrieved Matter . | . . Retrieved Components . | . . Parts Scanalyzed . | . . Part Schematics Acquired . | . . Parts Damaged . | . . Bothacking | -11 -10 ------------ Run | Yrd Mat Used RIF Installer . | . . Robots Hacked . | . . Non-combat . | . . Combat . | . . Robot Hacks Applied . | . . Relay Couplers Released . | . . Fabnet Peak Effective % . | . . Robots Rewired . | . . Allies Hacked . | . . Hacks Repelled . | . . Allies | -11 -10 -------- Run | Yrd Mat Total Allies . | . . Largest Group . | . . Highest-Rated Group . | . . Highest-Rated Ally . | . . Total Orders . | . . Ally Attacks . | . . Total Damage . | . . Kills . | . . Allies Corrupted . | . . Allies Melted . | . . Intel | -11 -10 ------- Run | Yrd Mat Active Infowar (turns) . | . . Robot Analysis Total . | . . Derelict Logs Recovered . | . . Drone Launches . | . . Drone Recoveries . | . . Exploration | -11 -10 ------------- Run | Yrd Mat Turns Passed 848 | 121 727 Spaces Moved 416 | 64 352 Core 8 | 4 4 Treads 408 | 60 348 Legs . | . . Wheels . | . . Hover . | . . Flight . | . . Fastest Speed 50 | 50 50 Average Speed 157 | 153 158 Slowest Speed 160 | 160 160 Overloaded Moves . | . . Propulsion Burnouts . | . . Robots Hopped . | . . Potential Cave-ins . | . . Cave-ins Triggered . | . . Exploration Rate (%) 34 | 5 64 Regions Visited 1 Branch Regions . Pre-discovered Areas . | . . Known Exits Taken . | . . Unknown Exits Taken 1 | 1 . Scrap Searched . | . . Spaces Dug . | . . Terrain Destroyed . | . . Melee . | . . Projectile . | . . AOE . | . . Terrain Rammed . | . . Walls Destroyed . | . . Machines Disabled . | . . Actions | -11 -10 --------- Run | Yrd Mat Total 541 | 85 456 Wait 56 | 13 43 Move 415 | 63 352 Hop . | . . Pick Up 15 | 4 11 Fast Attach 5 | 4 1 Attach 4 | . 4 Detach 1 | . 1 Swap 2 | 1 1 Drop 5 | . 5 Fire 37 | . 37 Melee . | . . Ram 1 | . 1 Kick . | . . Crush . | . . Escape Stasis . | . . Rewire . | . . Trap . | . . Miscellaneous . | . . Route ------- -11/Scrapyard -10/Materials (discovered 3 exits: [*Mat x2] / Min) History --------- Turn | Location | Event 53 | -11/Scrapyard | Discovered new exit (range 16) 122 | -11/Scrapyard | Entered Materials 292 | -10/Materials | Discovered new exit (range 15) 316 | -10/Materials | Build established: Mutant 539 | -10/Materials | Identified exit to Mines 650 | -10/Materials | Discovered new exit (range 14) 687 | -10/Materials | Core integrity fell below 50% 822 | -10/Materials | Core integrity fell below 20% 846 | -10/Materials | Released all parts (6) 849 | -10/Materials | Destroyed by G-34 Mercenary with Small Laser Last Messages --------------- 00805_ S-10 Pest destroyed. 00805_ Switching to secondary target: S-10 Pest. 00815_ S-10 Pest destroyed. 00815_ Switching to secondary target: S-10 Pest. 00820_ S-10 Pest destroyed. 00820_ Switching to secondary target: S-10 Pest. 00820_ S-10 Pest destroyed. 00827_ W-16 Scout sends out distress signal. 00835_ S-10 Pest destroyed. 00835_ Switching to secondary target: G-47 Trooper. 00844_ Ion Engine destroyed. 00846_ Released Lgt. Assault Rifle. 00846_ Released Lrg. Storage Unit. 00846_ Released Lgt. Treads. 00846_ Released Heat Sink. 00846_ Released Lgt. Assault Rifle. 00846_ Slammed into G-34 Mercenary. 00847_ Acquired 19 matter. 00848_ K-01 Serf collects debris. Map ----- +----------------------------------------------------+ | ?????????????????????????????????????????????????? | | ?????????????????????????????????????????????????? | | ?????????????????????????????????????????????????# | | ????????????????????????????????????############## | | ????????????????????????????????????#= | | ?????????????????????????????########%<= | | ?????????????????????????????# #=% | | ?????????????????????????????# | | ?????????????????????????????# # | | ?????????????????????????????##### # | | ?????????????????????????????????##?# ########## | | ??????????????????????????????????####+#####?????? | | ??????????????????????????????????# #?????? | | ??????????????????????????????????# """" #?????? | | ??????????????????????????????????# """" #?????? | | ??????????????????????????????????# """" #?????? | | ??????????????????????????????????# #?????? | | ??????????????????????????????????# """" #?????? | | ??????????????????????????????????# """" % #?????? | | ??????????????????????????????????# """" #?????? | | ?????????? ##+########+##???????# #?????? | | ????????? g################+###???? | | ????????? k%== # ##+## | | ????????? [#*%==*%= =# T | | ?????????????##### #### #[![ [%+ | | ??????????????????????# @#[![ =*# | | ??????????????????????# #! =# ## | | ??????????????????????# ############### ### | | ??????????????????????+ g #?????????????# #?# | | ??????????????????????# #?????????????# #?# | | ??????????????????????# #?????????????# #?# " | | ?????????????????????? ?????????????# #?# " | | ?????????????????????? ????????????? #?# " | | ????????????????????? a T ????????>???? #?# | | ????????????????????? ????????????? ### | | ????????????????????## ?????????????### " | | ?????????????????????###+###??????????????# *" | | ??????????????????????????????????????????# %" | | ??????????????????????????????????????????#^ ^^ | | ??????????????????????????????????????????# | | ??????????????????????????????????????????# " | | ??????????????????????????????????????#???# " | | ?????????????????????????????#? ? #???## " | | ?????????????????????????????# """ #????# | | ?????????????????????????????# """"" #????# | | ?????????????????????????????# """"" #????# ### | | ?????????????????????????????# """"" #????# #?? | | ?????????????????????????????# """ #????# #?? | | ?????????????????????????????# #???## ##? | | ?????????????????????????????####+######### #? | +----------------------------------------------------+ Best States ------------- Heat Dissipation 35 Energy Generation 10 Energy Capacity 250 Matter Stores 300 Matter Capacity 300 Sight Range 16 Terrain Scan Density 10 Evasion (%) 40 Recoil Reduction 2 Item Schematics ----------------- None Robot Schematics ------------------ None Fabricated ------------ Nothing Repaired ---------- Nothing Studied --------- None Alien Tech Used ----------------- None Achievements -------------- None Challenges ------------ None Game ------ Seed AssembledPersonalMount Manual? 0 Play Time 00:06:32 Cumulative 199.6 hours Start 2025.11.28 @ 16:55:50 End 2025.11.28 @ 17:02:22 Sessions 1 Manual Loads 0 Difficulty Rogue Special Mode None Game No. 139 Rogue 139 Adventurer 0 Explorer 0 Win Type - Total 7 Types 5/0/1/1/0/0/0/0/0/0 Lore% 83 Gallery% 75 Achievement% 58 Wizard Run 0 Options --------- Layout 1 ASCII 0 Keyboard 0 Movement Mouse Keybinds 0 Fullscreen 2 Font 32/SmallcapsGlow Map View 50x35 Zoom Use 6% Tactical HUD 1 Map Filters NONE Filters NONE Steam 1 RUN: 80856c63-1ae5-4120-9a20-13e2813dab3d